fUST/lending_fUST_20260109
["ID","MTS","AMOUNT","RATE_DAILY","PERIOD"]
[401048785,1767893446467,-5000.0,0.00016632,2]
[401048787,1767893446476,-5303.42720671,0.00016913,2]
[401048789,1767893446486,-2100.0,0.0001696,2]
[401048791,1767893446495,-3500.0,0.00016986,2]
[401048793,1767893446504,-3500.0,0.00016986,2]
[401048795,1767893446513,-3500.0,0.00016986,2]
[401048797,1767893446522,-50227.76823266,0.00017,2]
[401048799,1767893446532,-156358.86996262,0.0001701,3]
[401048801,1767893446541,-1000.0,0.0001706,2]
[401048803,1767893446550,-791.0,0.0001706,2]
[401048805,1767893446559,-151.0,0.00017108,2]
[401048807,1767893446568,-4000.0,0.00017108,2]
[401048809,1767893446578,-4000.0,0.00017108,2]
[401048811,1767893446591,-509.97635533,0.00017108,2]
[401048813,1767893446600,-4000.0,0.00017108,2]
[401048815,1767893446609,-958.25553475,0.00017226,2]
[401048817,1767893446618,-2400.0,0.0001726,2]
[401048819,1767893446627,-2837.15907887,0.00017464,2]
[401048821,1767893446638,-2400.0,0.00017508,2]
[401048823,1767893446647,-4000.0,0.00017534,2]
[401048825,1767893446657,-4000.0,0.00017534,2]
[401048827,1767893446666,-4000.0,0.00017534,2]
[401048829,1767893446675,-30000.0,0.00017559,2]
[401048831,1767893446684,-250.0,0.00017559,2]
[401048832,1767893446694,-250.0,0.00017559,2]
[401048834,1767893446703,-250.0,0.00017559,2]
[401048836,1767893446713,-250.0,0.00017559,2]
[401048838,1767893446722,-514.84070869,0.00017559,2]
[401048840,1767893446731,-500.0,0.00017559,2]
[401048842,1767893446741,-250.0,0.00017559,2]
[401048844,1767893446750,-250.0,0.00017559,2]
[401048846,1767893446759,-500.0,0.00017559,2]
[401048848,1767893446769,-250.0,0.00017559,2]
[401048850,1767893446778,-250.0,0.00017559,2]
[401048852,1767893446792,-500.0,0.00017559,2]
[401048854,1767893446801,-250.0,0.00017559,2]
[401048856,1767893446810,-250.0,0.00017559,2]
[401048858,1767893446820,-250.0,0.00017559,2]
[401048860,1767893446830,-500.0,0.00017559,2]
[401048861,1767893446839,-250.0,0.00017559,2]
[401048863,1767893446851,-250.0,0.00017559,2]
[401048865,1767893446860,-500.0,0.00017559,2]
[401048868,1767893446870,-250.0,0.00017559,2]
[401048871,1767893446879,-250.0,0.00017559,2]
[401048873,1767893446888,-250.0,0.00017559,2]
[401048876,1767893446897,-500.0,0.00017559,2]
[401048878,1767893446907,-250.0,0.00017559,2]
[401048880,1767893446915,-500.0,0.00017559,2]
[401048882,1767893446924,-250.0,0.00017559,2]
[401048883,1767893446933,-500.0,0.00017559,2]
[401048884,1767893446943,-250.0,0.00017559,2]
[401048885,1767893446952,-500.0,0.00017559,2]
[401048886,1767893446962,-250.0,0.00017559,2]
[401048887,1767893446971,-250.0,0.00017559,2]
[401048888,1767893446981,-500.0,0.00017559,2]
[401048889,1767893446990,-250.0,0.00017559,2]
[401048890,1767893446999,-500.0,0.00017559,2]
[401048891,1767893447009,-250.0,0.00017559,2]
[401048892,1767893447019,-500.0,0.00017559,2]
[401048893,1767893447028,-250.0,0.00017559,2]
[401048894,1767893447037,-1500.0,0.00017559,2]
[401048895,1767893447046,-2030.296672,0.00017559,2]
[401048896,1767893447055,-500.0,0.00017559,2]
[401048897,1767893447064,-250.0,0.00017559,2]
[401048898,1767893447073,-1500.0,0.00017559,2]
[401048899,1767893447082,-500.0,0.00017559,2]
[401048900,1767893447091,-250.0,0.00017559,2]
[401048901,1767893447101,-1500.0,0.00017559,2]
[401048902,1767893447110,-250.0,0.00017559,2]
[401048903,1767893447119,-1500.0,0.00017559,2]
[401048904,1767893447129,-2487.15318209,0.00017559,2]
[401048905,1767893447139,-1500.0,0.00017559,2]
[401048906,1767893447148,-1500.0,0.00017559,2]
[401048907,1767893447157,-1500.0,0.00017559,2]
[401048908,1767893447166,-1500.0,0.00017559,2]
[401048909,1767893447176,-1500.0,0.00017559,2]
[401048910,1767893447185,-1500.0,0.00017559,2]
[401048911,1767893447196,-151.0,0.00017559,2]
[401048912,1767893447205,-1500.0,0.00017559,2]
[401048913,1767893447214,-151.0,0.00017559,2]
[401048914,1767893447223,-1500.0,0.00017559,2]
[401048915,1767893447232,-151.0,0.00017559,2]
[401048916,1767893447241,-151.0,0.00017559,2]
[401048917,1767893447251,-302.0,0.00017559,2]
[401048919,1767893447260,-1500.0,0.00017559,2]
[401048921,1767893447269,-151.0,0.00017559,2]
[401048923,1767893447278,-1500.0,0.00017559,2]
[401048925,1767893447287,-151.0,0.00017559,2]
[401048927,1767893447296,-151.0,0.00017559,2]
[401048929,1767893447305,-151.0,0.00017559,2]
[401048931,1767893447315,-151.0,0.00017559,2]
[401048933,1767893447324,-151.0,0.00017559,2]
[401048935,1767893447334,-151.0,0.00017559,2]
[401048937,1767893447344,-151.0,0.00017559,2]
[401048939,1767893447353,-151.0,0.00017559,2]
[401048941,1767893447362,-151.0,0.00017559,2]
[401048943,1767893447371,-151.0,0.00017559,2]
[401048945,1767893447381,-151.0,0.00017559,2]
[401048947,1767893447391,-151.0,0.00017559,2]
[401048949,1767893447400,-151.0,0.00017559,2]
[401048951,1767893447410,-151.0,0.00017559,2]
[401048953,1767893447419,-151.0,0.00017559,2]
[401048955,1767893447428,-287.0,0.00017559,2]
[401048957,1767893447437,-151.0,0.00017559,2]
[401048959,1767893447447,-151.0,0.00017559,2]
[401048961,1767893447456,-151.0,0.00017559,2]
[401048963,1767893447464,-2105.41764886,0.00017614,2]
[401048965,1767893447473,-2481.03860106,0.00017656,2]
[401048967,1767893447484,-498.72100815,0.00017656,2]
[401048969,1767893447493,-4500.0,0.00017656,2]
[401048971,1767893447502,-2183.31810187,0.00017669,2]
[401048973,1767893447512,-2264.10087164,0.00017724,2]
[401048975,1767893447521,-2347.87260389,0.00017779,2]
[401048976,1767893447530,-8837.0,0.00017829,2]
[401048978,1767893447539,-2434.74389024,0.00017834,2]
[401048980,1767893447549,-479.78804727,0.00017842,2]
[401048982,1767893447559,-2524.82941417,0.00017889,2]
[401048984,1767893447569,-151.0,0.000179,2]
[401048986,1767893447583,-3630.60961201,0.00017909,2]
[401048988,1767893447603,-2618.2481025,0.00017944,2]
[401048991,1767893447625,-2545.42955254,0.00017999,2]
[401048992,1767893447637,-150894.00766706,0.00018,2]
[401048994,1767893447646,-3120.51812043,0.00018,5]
[401048996,1767893447655,-5000.0,0.00018018,2]
[401048998,1767893447665,-1507.44944301,0.00018056,2]
[401049000,1767893447674,-4500.0,0.00018082,2]
[401049002,1767893447683,-4500.0,0.00018082,2]
[401049004,1767893447693,-4500.0,0.00018082,2]
[401049006,1767893447702,-780.44,0.000181,2]
[401049008,1767893447711,-31110.0,0.00018107,2]
[401049010,1767893447721,-533.88981491,0.00018107,2]
[401049012,1767893447729,-2579.17784983,0.00018107,2]
[401049014,1767893447739,-5000.0,0.00018204,2]
[401049016,1767893447748,-5439.05122134,0.00018341,2]
[401049018,1767893447757,-1899.64931956,0.00018356,2]
[401049020,1767893447767,-564.738811,0.00018493,2]
[401049022,1767893447776,-4424.14636821,0.0001861,2]
[401049024,1767893447785,-2000.0,0.0001862,7]
[401049025,1767893447794,-5000.0,0.0001863,2]
[401049027,1767893447803,-5000.0,0.0001863,2]
[401049029,1767893447812,-2395.64095761,0.0001863,2]
[401049031,1767893447822,-32261.07,0.00018655,2]
[401049033,1767893447831,-553.64373807,0.00018655,2]
[401049035,1767893447842,-2674.60743027,0.00018655,2]
[401049037,1767893447851,-5500.0,0.00018752,2]
[401049039,1767893447861,-5043.83836243,0.00018761,2]
[401049041,1767893447870,-1000.0,0.00018766,2]
[401049043,1767893447879,-1000.0,0.00018766,2]
[401049045,1767893447889,-125980.80402723,0.000189,5]
[401049047,1767893447898,-356.47419888,0.00019,20]
[401049049,1767893447907,-341.324064,0.00019178,2]
[401049051,1767893447916,-341.324064,0.00019178,2]
[401049053,1767893447925,-341.324064,0.00019178,2]
[401049055,1767893447934,-341.324064,0.00019178,2]
[401049056,1767893447943,-1167.21136956,0.00019178,2]
[401049058,1767893447957,-5500.0,0.00019178,2]
[401049060,1767893447966,-2000.0,0.00019189,7]
[401049062,1767893447975,-167.4,0.000192,2]
[401049064,1767893447984,-163.27,0.000192,2]
[401049066,1767893447993,-164.69,0.000192,2]
[401049068,1767893448003,-33454.72959,0.00019203,2]
[401049070,1767893448011,-574.12855637,0.00019203,2]
[401049072,1767893448020,-2773.56790519,0.00019203,2]
[401049074,1767893448029,-498.42576809,0.00019205,5]
[401049076,1767893448038,-1058.53809071,0.00019226,2]
[401049078,1767893448047,-256.19474322,0.00019233,3]
[401049080,1767893448056,-151.0,0.000193,2]
[401049082,1767893448065,-1502.08,0.000193,2]
[401049084,1767893448075,-20550.55,0.000193,2]
[401049085,1767893448083,-2031.92126105,0.000193,2]
[401049087,1767893448094,-6000.0,0.00019726,2]
[401049089,1767893448103,-34692.55458483,0.00019751,2]
[401049091,1767893448112,-595.37131296,0.00019751,2]
[401049093,1767893448121,-2876.18991768,0.00019751,2]
[401049095,1767893448130,-2000.0,0.00019758,7]
[401049097,1767893448140,-810.2,0.00019982,2]
[401049099,1767893448148,-1003.0,0.0002,2]
[401049101,1767893448158,-300.26582625,0.0002,2]
[401049103,1767893448167,-561.06361585,0.0002,7]
[401049105,1767893448176,-77453.2393471,0.0002,2]
[401049107,1767893448185,-7880.9974413,0.00020057,2]
[401049109,1767893448194,-160.0,0.00020119,2]
[401049111,1767893448203,-1041.66666667,0.00020119,2]
[401049113,1767893448212,-6500.0,0.00020274,2]
[401049115,1767893448221,-35976.17910447,0.00020299,2]
[401049117,1767893448230,-617.40005154,0.00020299,2]
[401049119,1767893448240,-2982.60894464,0.00020299,2]
[401049121,1767893448249,-2000.0,0.00020327,7]
[401049123,1767893448258,-203.0,0.00020329,3]
[401049125,1767893448267,-1000.0,0.00020642,2]
[401049127,1767893448276,-1000.0,0.00020642,2]
[401049128,1767893448285,-579.0,0.00020642,2]
[401049130,1767893448294,-151.0,0.000207,4]
[401049132,1767893448304,-35714.32,0.000207,3]
[401049134,1767893448312,-7865.14909904,0.00020703,2]
[401049136,1767893448322,-5303.42720671,0.00020806,2]
[401049138,1767893448331,-7000.0,0.00020822,2]
[401049140,1767893448340,-37307.29773133,0.00020847,2]
[401049142,1767893448350,-640.24385345,0.00020847,2]
[401049144,1767893448360,-3092.96547559,0.00020847,2]
[401049146,1767893448369,-2000.0,0.00020896,7]
[401049148,1767893448379,-160.18626186,0.00020959,2]
[401049149,1767893448388,-987.26,0.00021,7]
[401049151,1767893448399,-599.999999,0.00021,2]
[401049153,1767893448409,-22304.26684721,0.00021,2]
[401049155,1767893448418,-5439.05122134,0.00021061,2]
[401049157,1767893448428,-810.2,0.00021184,2]
[401049159,1767893448437,-163.27,0.000212,2]
[401049161,1767893448446,-164.69,0.000212,2]
[401049163,1767893448455,-1158.82064668,0.00021226,2]
[401049165,1767893448465,-172.18674375,0.00021226,2]
[401049167,1767893448475,-11348.63631548,0.00021354,2]
[401049169,1767893448484,-2884.88182039,0.0002137,2]
[401049171,1767893448494,-38687.66774739,0.00021395,2]
[401049173,1767893448503,-663.93287602,0.00021395,2]
[401049175,1767893448512,-3207.40519818,0.00021395,2]
[401049177,1767893448522,-205.0,0.00021425,4]
[401049179,1767893448531,-2000.0,0.00021465,7]
[401049181,1767893448540,-8168.87162703,0.00021484,2]
[401049183,1767893448550,-1039.02352417,0.000215,2]
[401049185,1767893448559,-12852.18434421,0.000215,2]
[401049187,1767893448569,-6016.02406311,0.000215,2]
[401049189,1767893448578,-564.738811,0.00021918,2]
[401049191,1767893448590,-151.17138734,0.00021918,2]
[401049193,1767893448600,-10171.5837719,0.00021943,2]
[401049195,1767893448610,-688.49839244,0.00021943,2]
[401049197,1767893448619,-3326.07919052,0.00021943,2]
[401049199,1767893448628,-151.0,0.00021988,2]
[401049201,1767893448638,-1500.0,0.00021988,2]
[401049203,1767893448647,-492.25,0.00022,2]
[401049204,1767893448658,-151.0,0.00022,7]
[401049206,1767893448667,-875.15,0.00022,7]
[401049208,1767893448677,-28541.27315898,0.00022,2]
[401049210,1767893448686,-2000.0,0.00022034,7]
[401049212,1767893448695,-151.0,0.00022233,2]
[401049214,1767893448704,-151.0,0.00022233,2]
[401049216,1767893448713,-151.0,0.00022233,2]
[401049218,1767893448723,-153.716458,0.00022233,2]
[401049220,1767893448733,-810.2,0.00022385,2]
[401049221,1767893448742,-20550.55,0.000224,2]
[401049222,1767893448751,-2000.51544348,0.00022413,2]
[401049223,1767893448761,-713.97283296,0.00022491,2]
[401049224,1767893448770,-3449.14412057,0.00022491,2]
[401049225,1767893448779,-206.0,0.00022521,7]
[401049226,1767893448789,-151.0,0.00022536,2]
[401049227,1767893448798,-1093.27707489,0.00022536,2]
[401049228,1767893448808,-2000.0,0.00022603,7]
[401049229,1767893448818,-1000.0,0.00022707,10]
[401049230,1767893448827,-1000.0,0.00022707,10]
[401049231,1767893448837,-1000.0,0.00022707,10]
[401049232,1767893448848,-1502.08,0.000228,14]
[401049233,1767893448857,-1041.66666667,0.00023,3]
[401049234,1767893448866,-740.38982778,0.00023039,2]
[401049235,1767893448876,-3576.76245303,0.00023039,2]
[401049236,1767893448887,-151.0,0.00023084,2]
[401049237,1767893448895,-341.324064,0.00023084,2]
[401049238,1767893448905,-341.324064,0.00023084,2]
[401049239,1767893448914,-341.324064,0.00023084,2]
[401049240,1767893448924,-341.324064,0.00023084,2]
[401049241,1767893448933,-151.0,0.00023084,2]
[401049242,1767893448943,-2000.0,0.00023172,7]
[401049243,1767893448953,-1259.10320264,0.00023226,2]
[401049244,1767893448963,-151.0,0.000234,9]
[401049245,1767893448973,-810.2,0.00023587,2]
[401049246,1767893448982,-815.62871694,0.00023587,2]
[401049247,1767893448992,-3709.10266379,0.00023587,2]
[401049248,1767893449001,-163.27,0.000236,7]
[401049249,1767893449010,-164.69,0.000236,7]
[401049250,1767893449020,-208.0,0.00023616,10]
[401049251,1767893449029,-151.0,0.00023632,2]
[401049252,1767893449039,-2000.0,0.00023741,7]
[401049253,1767893449048,-5439.05122134,0.00023781,2]
[401049254,1767893449058,-5000.0,0.00023858,2]
[401049255,1767893449067,-1041.66666667,0.00024,7]
[401049256,1767893449077,-3846.33946235,0.00024135,2]
[401049257,1767893449086,-452487.29550047,0.00024142,2]
[401049258,1767893449096,-151.0,0.0002418,2]
[401049259,1767893449106,-50264.40458466,0.000242,2]
[401049260,1767893449115,-875.15,0.000243,7]
[401049261,1767893449254,-2000.0,0.0002431,7]
[401049262,1767893449264,-156750.63074783,0.0002465,2]
[401049263,1767893449274,-513.88250982,0.0002465,2]
[401049264,1767893449284,-151.0,0.00024658,2]
[401049265,1767893449293,-151.0,0.00024658,2]
[401049266,1767893449302,-151.0,0.00024658,2]
[401049267,1767893449311,-151.0,0.00024658,2]
[401049268,1767893449320,-151.0,0.00024658,2]
[401049269,1767893449330,-183.558633,0.00024658,2]
[401049271,1767893449345,-183.558633,0.00024658,2]
[401049272,1767893449355,-183.558633,0.00024658,2]
[401049273,1767893449365,-183.558633,0.00024658,2]
[401049275,1767893449375,-151.0,0.00024658,2]
[401049276,1767893449385,-151.0,0.00024658,2]
[401049277,1767893449396,-151.0,0.00024658,2]
[401049278,1767893449405,-151.0,0.00024658,2]
[401049279,1767893449414,-151.0,0.00024658,2]
[401049280,1767893449423,-191.094302,0.00024658,2]
[401049281,1767893449433,-191.094302,0.00024658,2]
[401049282,1767893449442,-191.094302,0.00024658,2]
[401049283,1767893449451,-191.094302,0.00024658,2]
[401049284,1767893449460,-151.0,0.00024658,2]
[401049285,1767893449470,-182.749737,0.00024658,2]
[401049286,1767893449478,-151.0,0.00024658,2]
[401049287,1767893449487,-182.749737,0.00024658,2]
[401049288,1767893449497,-151.0,0.00024658,2]
[401049289,1767893449506,-182.749737,0.00024658,2]
[401049290,1767893449517,-182.749737,0.00024658,2]
[401049291,1767893449528,-248.949077,0.00024658,2]
[401049292,1767893449537,-248.949077,0.00024658,2]
[401049293,1767893449547,-248.949077,0.00024658,2]
[401049295,1767893449557,-248.949077,0.00024658,2]
[401049297,1767893449566,-151.0,0.00024658,2]
[401049298,1767893449574,-151.0,0.00024658,2]
[401049299,1767893449584,-151.0,0.00024658,2]
[401049301,1767893449597,-151.0,0.00024658,2]
[401049302,1767893449606,-151.0,0.00024658,2]
[401049303,1767893449615,-1439.873322,0.00024658,2]
[401049304,1767893449624,-151.0,0.00024658,2]
[401049305,1767893449634,-1439.873322,0.00024658,2]
[401049306,1767893449643,-1439.873322,0.00024658,2]
[401049307,1767893449652,-1439.873322,0.00024658,2]
[401049308,1767893449664,-622.20825,0.00024658,2]
[401049309,1767893449674,-622.20825,0.00024658,2]
[401049310,1767893449683,-622.20825,0.00024658,2]
[401049311,1767893449692,-622.20825,0.00024658,2]
[401049312,1767893449702,-151.0,0.00024658,2]
[401049313,1767893449712,-757.340513,0.00024658,2]
[401049314,1767893449722,-757.340513,0.00024658,2]
[401049315,1767893449731,-757.340513,0.00024658,2]
[401049316,1767893449741,-757.340513,0.00024658,2]
[401049317,1767893449750,-151.0,0.00024658,2]
[401049318,1767893449762,-151.0,0.00024658,2]
[401049319,1767893449771,-151.0,0.00024658,2]
[401049320,1767893449780,-151.0,0.00024658,2]
[401049321,1767893449792,-151.0,0.00024658,2]
[401049322,1767893449801,-151.0,0.00024658,2]
[401049323,1767893449810,-151.0,0.00024658,2]
[401049324,1767893449819,-179.188398,0.00024658,2]
[401049325,1767893449828,-2391.210697,0.00024658,2]
[401049326,1767893449836,-2391.210697,0.00024658,2]
[401049327,1767893449846,-151.58214,0.00024658,2]
[401049328,1767893449856,-2391.210697,0.00024658,2]
[401049329,1767893449865,-2391.210697,0.00024658,2]
[401049330,1767893449875,-2391.210697,0.00024658,2]
[401049331,1767893449885,-2391.210697,0.00024658,2]
[401049332,1767893449894,-151.0,0.00024658,2]
[401049333,1767893449903,-151.0,0.00024658,2]
[401049334,1767893449913,-2391.210697,0.00024658,2]
[401049335,1767893449922,-2391.210697,0.00024658,2]
[401049336,1767893449933,-151.0,0.00024658,2]
[401049337,1767893449942,-151.0,0.00024658,2]
[401049338,1767893449952,-151.0,0.00024658,2]
[401049339,1767893449963,-151.0,0.00024658,2]
[401049340,1767893449972,-262.112916,0.00024658,2]
[401049341,1767893449982,-151.0,0.00024658,2]
[401049342,1767893449992,-238.415405,0.00024658,2]
[401049343,1767893450001,-151.0,0.00024658,2]
[401049344,1767893450010,-151.0,0.00024658,2]
[401049345,1767893450020,-171.590843,0.00024658,2]
[401049346,1767893450029,-151.0,0.00024658,2]
[401049347,1767893450038,-227.192077,0.00024658,2]
[401049348,1767893450048,-195.610594,0.00024658,2]
[401049349,1767893450058,-195.610594,0.00024658,2]
[401049350,1767893450068,-195.610594,0.00024658,2]
[401049351,1767893450077,-195.610594,0.00024658,2]
[401049352,1767893450086,-151.0,0.00024658,2]
[401049353,1767893450095,-151.0,0.00024658,2]
[401049354,1767893450104,-195.610594,0.00024658,2]
[401049355,1767893450113,-195.610594,0.00024658,2]
[401049356,1767893450122,-153.60505,0.00024658,2]
[401049357,1767893450131,-195.610594,0.00024658,2]
[401049358,1767893450141,-195.610594,0.00024658,2]
[401049359,1767893450151,-151.0,0.00024658,2]
[401049360,1767893450160,-151.0,0.00024658,2]
[401049361,1767893450169,-151.366366,0.00024658,2]
[401049362,1767893450178,-151.0,0.00024658,7]
[401049363,1767893450187,-178.016843,0.00024658,7]
[401049364,1767893450196,-151.0,0.00024658,7]
[401049365,1767893450205,-2391.210697,0.00024658,7]
[401049366,1767893450213,-2391.210697,0.00024658,7]
[401049367,1767893450223,-2391.210697,0.00024658,7]
[401049368,1767893450233,-151.0,0.00024658,7]
[401049369,1767893450242,-2391.210697,0.00024658,7]
[401049370,1767893450251,-151.0,0.00024658,7]
[401049371,1767893450260,-204.768677,0.00024658,7]
[401049372,1767893450270,-341.324064,0.00024658,7]
[401049373,1767893450279,-341.324064,0.00024658,7]
[401049374,1767893450289,-341.324064,0.00024658,7]
[401049375,1767893450298,-341.324064,0.00024658,7]
[401049376,1767893450308,-195.610594,0.00024658,7]
[401049377,1767893450317,-195.610594,0.00024658,7]
[401049378,1767893450325,-151.0,0.00024658,7]
[401049379,1767893450334,-195.610594,0.00024658,7]
[401049380,1767893450345,-195.610594,0.00024658,7]
[401049381,1767893450354,-151.0,0.00024658,7]
[401049382,1767893450364,-5303.42720671,0.000247,2]
[401049383,1767893450373,-178571.4,0.000247,3]
[401049384,1767893450383,-210.0,0.00024712,14]
[401049385,1767893450391,-151.0,0.00024728,2]
[401049386,1767893450400,-16824.61855787,0.00024774,2]
[401049387,1767893450411,-810.2,0.00024789,2]
[401049388,1767893450420,-415601.364059,0.000248,2]
[401049389,1767893450431,-248.949077,0.000248,7]
[401049390,1767893450440,-248.949077,0.000248,7]
[401049391,1767893450451,-248.949077,0.000248,7]
[401049392,1767893450461,-248.949077,0.000248,7]
[401049393,1767893450471,-189.471009,0.000248,7]
[401049394,1767893450481,-151.0,0.000248,7]
[401049395,1767893450490,-151.0,0.000248,7]
[401049396,1767893450499,-151.0,0.000248,7]
[401049397,1767893450509,-1439.873322,0.000248,7]
[401049398,1767893450518,-212.874628,0.000248,7]
[401049399,1767893450528,-1439.873322,0.000248,7]
[401049400,1767893450537,-1439.873322,0.000248,7]
[401049401,1767893450545,-1439.873322,0.000248,7]
[401049402,1767893450555,-622.20825,0.000248,7]
[401049403,1767893450565,-622.20825,0.000248,7]
[401049404,1767893450575,-622.20825,0.000248,7]
[401049405,1767893450584,-622.20825,0.000248,7]
[401049406,1767893450596,-757.340513,0.000248,7]
[401049407,1767893450605,-151.0,0.000248,7]
[401049408,1767893450615,-757.340513,0.000248,7]
[401049409,1767893450626,-757.340513,0.000248,7]
[401049410,1767893450635,-757.340513,0.000248,7]
[401049411,1767893450645,-178.75645,0.000248,7]
[401049412,1767893450655,-2000.0,0.00024879,7]
[401049413,1767893450665,-250.0,0.000249,2]
[401049414,1767893450674,-250.4,0.000249,2]
[401049415,1767893450683,-151.0,0.000249,7]
[401049416,1767893450692,-151.0,0.000249,7]
[401049417,1767893450701,-151.0,0.000249,7]
[401049418,1767893450710,-151.0,0.000249,7]
[401049419,1767893450719,-151.0,0.000249,7]
[401049420,1767893450728,-151.0,0.000249,7]
[401049421,1767893450738,-151.0,0.000249,7]
[401049422,1767893450747,-151.0,0.000249,7]
[401049423,1767893450756,-183.558633,0.000249,7]
[401049424,1767893450765,-183.558633,0.000249,7]
[401049425,1767893450775,-183.558633,0.000249,7]
[401049426,1767893450784,-183.558633,0.000249,7]
[401049427,1767893450793,-151.858704,0.000249,7]
[401049428,1767893450803,-151.0,0.000249,7]
[401049429,1767893450811,-151.0,0.000249,7]
[401049430,1767893450820,-151.0,0.000249,7]
[401049431,1767893450830,-151.0,0.000249,7]
[401049432,1767893450840,-191.094302,0.000249,7]
[401049433,1767893450850,-191.094302,0.000249,7]
[401049434,1767893450859,-643721.038142,0.000249,2]
[401049435,1767893450868,-191.094302,0.000249,7]
[401049436,1767893450877,-191.094302,0.000249,7]
[401049437,1767893450888,-151.0,0.000249,7]
[401049438,1767893450897,-182.749737,0.000249,7]
[401049439,1767893450906,-151.0,0.000249,7]
[401049440,1767893450916,-182.749737,0.000249,7]
[401049441,1767893450926,-151.0,0.000249,7]
[401049442,1767893450935,-182.749737,0.000249,7]
[401049443,1767893450945,-182.749737,0.000249,7]
[401049444,1767893450954,-151.0,0.000249,7]
[401049445,1767893450964,-151.0,0.000249,7]
[401049446,1767893450973,-2391.210697,0.000249,7]
[401049447,1767893450983,-2391.210697,0.000249,7]
[401049448,1767893450992,-2391.210697,0.000249,7]
[401049449,1767893451002,-151.0,0.000249,7]
[401049450,1767893451011,-2391.210697,0.000249,7]
[401049451,1767893451021,-151.0,0.000249,7]
[401049452,1767893451030,-341.324064,0.000249,7]
[401049453,1767893451042,-341.324064,0.000249,7]
[401049454,1767893451060,-341.324064,0.000249,7]
[401049455,1767893451080,-341.324064,0.000249,7]
[401049456,1767893451092,-195.610594,0.000249,7]
[401049457,1767893451104,-195.610594,0.000249,7]
[401049458,1767893451113,-151.0,0.000249,7]
[401049459,1767893451124,-195.610594,0.000249,7]
[401049460,1767893451137,-195.610594,0.000249,7]
[401049461,1767893451148,-1000.0,0.00024977,10]
[401049462,1767893451160,-1000.0,0.00024977,10]
[401049463,1767893451170,-1000.0,0.00024977,10]
[401049464,1767893451179,-715.0,0.00024977,10]
[401049465,1767893451190,-20550.55,0.00025,2]
[401049466,1767893451200,-167.0,0.00025,7]
[401049467,1767893451211,-184.0,0.00025,7]
[401049468,1767893451223,-559.59362836,0.00025,15]
[401049469,1767893451234,-2662.11877043,0.00025,2]
[401049470,1767893451246,-2673.80811109,0.00025,2]
[401049471,1767893451256,-20757.85955183,0.00025,2]
[401049472,1767893451268,-10364.0,0.00025,2]
[401049473,1767893451279,-500.0,0.00025,2]
[401049474,1767893451291,-300.0,0.00025,30]
[401049475,1767893451300,-1557.93414873,0.00025,2]
[401049476,1767893451311,-759.14155668,0.00025,2]
[401049477,1767893451322,-1041.66666667,0.00025,7]
[401049478,1767893451332,-1041.66666667,0.00025,7]
[401049479,1767893451343,-579.94263287,0.000252,5]
[401049480,1767893451353,-250.0,0.00025205,2]
[401049481,1767893451362,-1359.3857586,0.00025226,2]
[401049482,1767893451372,-294.36088308,0.00025276,2]
[401049483,1767893451381,-5000.0,0.00025302,2]
[401049484,1767893451390,-564.738811,0.00025342,2]
[401049485,1767893451400,-1502.08,0.000254,14]
[401049486,1767893451411,-2000.0,0.00025448,7]